fUST/lending_fUST_20240304
["ID","MTS","AMOUNT","RATE_DAILY","PERIOD"]
[316503833,1709517046184,-424.9347464,0.00024657,2]
[316503908,1709518145088,-9979.92192768,0.00021869,2]
[316503911,1709518155162,-5954.91420501,0.00021869,2]
[316503912,1709518155182,-24900.0,0.0002187,2]
[316503913,1709518155202,-1220.636849,0.00021894,2]
[316503914,1709518155222,-176.28320101,0.00021945,2]
[316503915,1709518155241,-1472.85786267,0.00021945,2]
[316503916,1709518155261,-167.655957,0.00021947,2]
[316503917,1709518155281,-81.33755919,0.00022249,2]
[316503918,1709518159116,-155.08374522,0.00021868,2]
[316503924,1709518172164,-21.19945579,0.00021868,2]
[316503925,1709518172189,-97.10207011,0.00022249,2]
[316503926,1709518172213,-333.05225138,0.00022557,2]
[316503927,1709518172237,-1039.38320884,0.00022642,2]
[316503928,1709518172259,-371.74073728,0.00023022,2]
[316503934,1709518199112,222.03483425,0.00019794,2]
[316503961,1709518232326,-217.64238433,0.00023022,2]
[316503962,1709518232336,-300.0,0.00023997,2]
[316503963,1709518232346,-9812.10455655,0.00023998,2]
[316503967,1709518232408,-6721.59144866,0.00023998,2]
[316503969,1709518232419,-2558.9422101,0.00023998,2]
[316503971,1709518232430,-767.52867538,0.00023998,2]
[316504072,1709518238350,-520.34,0.0002345,2]
[316504105,1709518243282,-373.7056242,0.0002345,2]
[316504106,1709518243292,-1472.85786267,0.00023996,2]
[316504107,1709518243301,-7575.23651313,0.00023998,2]
[316504406,1709518246346,-2115.07621208,0.00023998,2]
[316504844,1709519356118,-1472.85786267,0.00021656,2]
[316504845,1709519356137,-600.00739472,0.00021657,2]
[316504846,1709519356157,-167.924549,0.00021658,2]
[316504847,1709519356176,-751.49491014,0.00021898,2]
[316504848,1709519356196,-170.998618,0.00022085,2]
[316504849,1709519356215,-5193.41517435,0.00022191,2]
[316504906,1709519432472,-500.99660676,0.00020091,2]
[316504908,1709519432482,-141.57176845,0.00022191,2]
[316504911,1709519432491,-311.81496266,0.00022642,2]
[316504913,1709519432501,-196.07409018,0.00023022,2]
[316504915,1709519432510,-973.27031731,0.00023022,5]
[316504916,1709519432519,-200.7312975,0.00023178,2]
[316504918,1709519432528,-154.0707018,0.00023178,2]
[316504920,1709519432538,-153.0,0.00023178,2]
[316504922,1709519432547,-1472.85786267,0.00023398,2]
[316504924,1709519432557,-312.60385265,0.00023399,2]
[316504926,1709519432567,-152.29624789,0.000234,2]
[316504928,1709519432577,-192.62603828,0.0002395,2]
[316504930,1709519432586,-4609.66149506,0.00023998,2]
[316504932,1709519432597,-2080.56085489,0.00023998,2]
[316504934,1709519432609,-31346.25659752,0.00023998,2]
[316504936,1709519432618,-4002.11971306,0.00024,2]
[316505034,1709519438393,-603.12900096,0.00024,2]
[316505035,1709519438510,-2135.96513075,0.00024,2]
[316505042,1709519441496,-3818.93992236,0.00024,2]
[316505043,1709519441509,-300.0,0.00024,11]
[316505044,1709519441520,-150.0,0.00024,2]
[316505045,1709519441530,-304.30605154,0.00024557,2]
[316505046,1709519441540,-182.23064822,0.00024557,2]
[316505047,1709519441550,-182.23064821,0.00024646,2]
[316505048,1709519441561,-282.55,0.00024647,3]
[316505049,1709519441571,-847.65,0.00024647,3]
[316505050,1709519441582,-501.65719238,0.00024657,2]
[316505051,1709519441592,-500.0,0.00024657,2]
[316505052,1709519441603,-500.0,0.00024657,2]
[316505053,1709519441613,-500.0,0.00024657,2]
[316505054,1709519441624,-26.77785945,0.00024657,2]
[316505055,1709519441638,-473.22214055,0.00024657,2]
[316505056,1709519441649,-500.0,0.00024657,2]
[316505057,1709519441660,-500.0,0.00024657,2]
[316505058,1709519441671,-500.0,0.00024657,2]
[316505059,1709519441682,-500.0,0.00024657,2]
[316505060,1709519441695,-500.0,0.00024657,2]
[316505061,1709519441705,-500.0,0.00024657,2]
[316505062,1709519441714,-500.0,0.00024657,2]
[316505063,1709519441724,-206.13312368,0.00024657,2]
[316505064,1709519441737,-500.0,0.00024657,2]
[316505065,1709519441749,-500.0,0.00024657,2]
[316505066,1709519441759,-222.57919582,0.00024657,2]
[316505067,1709519441770,-431.1879166,0.00024657,2]
[316505189,1709519762268,321.0,0.0002,2]
[316505225,1709520560166,-312.60385265,0.00021149,2]
[316505226,1709520560189,-184.08617855,0.0002115,2]
[316505227,1709520560209,-2826.98246194,0.00021151,2]
[316505228,1709520560229,-187.814328,0.00021155,2]
[316505229,1709520560252,-12001.4261391,0.00021613,2]
[316505230,1709520560273,-9210.2481931,0.00021964,2]
[316505231,1709520560296,-224.956116,0.0002225,2]
[316505232,1709520560318,-163.63846377,0.00022457,2]
[316505233,1709520560339,-736.31219604,0.00022557,2]
[316505234,1709520560362,-385.89270657,0.00022642,2]
[316505235,1709520611320,540.87479736,0.00019864,2]
[316505257,1709520634536,-10.67050359,0.00022642,2]
[316505259,1709520634546,-494.15072493,0.00023018,2]
[316505261,1709520634556,-688.5637,0.000232,30]
[316505263,1709520634565,-312.60385265,0.00023998,2]
[316505272,1709520634574,-8238.30978747,0.00023999,2]
[316505273,1709520634690,-300.0,0.00024,11]
[316505274,1709520634700,-360.50385811,0.00024,2]
[316505275,1709520634736,-5273.93025112,0.00024,2]
[316505276,1709520634746,-7152.04759599,0.00024,2]
[316505277,1709520634755,-1586.71325062,0.00024,2]
[316505278,1709520634764,-152.08101338,0.00024534,2]
[316505279,1709520634773,-182.23064821,0.00024557,2]
[316505280,1709520634782,-771.48,0.00024647,3]
[316505281,1709520634791,-502.97038735,0.00024657,2]
[316505282,1709520634801,-501.84941457,0.00024657,2]
[316505283,1709520634809,-502.32877394,0.00024657,2]
[316505284,1709520634818,-299.373459,0.00024657,2]
[316505285,1709520634827,-500.0,0.00024657,2]
[316505286,1709520634836,-500.0,0.00024657,2]
[316505287,1709520634845,-500.0,0.00024657,2]
[316505288,1709520634854,-531.55498812,0.00024657,2]
[316505289,1709520634863,-500.0,0.00024657,2]
[316505290,1709520634872,-500.0,0.00024657,2]
[316505291,1709520634881,-500.0,0.00024657,2]
[316505292,1709520634890,-500.0,0.00024657,2]
[316505293,1709520634899,-503.34936172,0.00024657,2]
[316505294,1709520634908,-500.0,0.00024657,2]
[316505295,1709520634917,-500.0,0.00024657,2]
[316505296,1709520634926,-500.0,0.00024657,2]
[316505297,1709520634935,-502.83883107,0.00024657,2]
[316505298,1709520634944,-500.0,0.00024657,2]
[316505299,1709520634953,-500.0,0.00024657,2]
[316505300,1709520634962,-151.245199,0.00024657,2]
[316505301,1709520634970,-646.59380512,0.00024657,2]
[316505302,1709520634979,-500.0,0.00024657,2]
[316505303,1709520634989,-518.10672454,0.00024657,2]
[316505304,1709520634998,-502.0009226,0.00024657,2]
[316505305,1709520635008,-500.77491965,0.00024657,2]
[316505306,1709520635017,-500.0,0.00024657,2]
[316505307,1709520635026,-500.0,0.00024657,2]
[316505308,1709520635035,-500.0,0.00024657,2]
[316505309,1709520635044,-407.13552458,0.00024657,2]
[316505310,1709520635054,-500.59450636,0.00024657,2]
[316505311,1709520635063,-500.0,0.00024657,2]
[316505312,1709520635072,-503.20032969,0.00024657,2]
[316505313,1709520635082,-500.0,0.00024657,2]
[316505314,1709520635092,-500.0,0.00024657,2]
[316505315,1709520635101,-500.0,0.00024657,2]
[316505316,1709520635111,-500.0,0.00024657,2]
[316505317,1709520635120,-500.0,0.00024657,2]
[316505318,1709520635130,-500.0,0.00024657,2]
[316505319,1709520635140,-151.0,0.00024657,2]
[316505320,1709520635150,-151.0,0.00024657,2]
[316505321,1709520635160,-151.0,0.00024657,2]
[316505322,1709520635170,-151.0,0.00024657,2]
[316505323,1709520635179,-212.686939,0.00024657,2]
[316505324,1709520635190,-502.56799972,0.00024657,2]
[316505325,1709520635199,-500.0,0.00024657,2]
[316505326,1709520635208,-505.41085245,0.00024657,2]
[316505327,1709520635218,-777.33,0.00024657,2]
[316505328,1709520635227,-777.33,0.00024657,2]
[316505329,1709520635238,-777.33,0.00024657,2]
[316505330,1709520635248,-777.33,0.00024657,2]
[316505331,1709520635262,-777.33,0.00024657,2]
[316505332,1709520635272,-777.33,0.00024657,2]
[316505333,1709520635282,-505.54126664,0.00024657,2]
[316505334,1709520635291,-151.187827,0.00024657,2]
[316505335,1709520635301,-500.0,0.00024657,2]
[316505336,1709520635311,-500.0,0.00024657,2]
[316505337,1709520635320,-500.0,0.00024657,2]
[316505338,1709520635330,-556.15782412,0.00024657,2]
[316505339,1709520635339,-500.0,0.00024657,2]
[316505340,1709520635351,-500.0,0.00024657,2]
[316505341,1709520635361,-500.0,0.00024657,2]
[316505342,1709520635370,-500.0,0.00024657,2]
[316505343,1709520635380,-500.0,0.00024657,2]
[316505344,1709520635390,-500.0,0.00024657,2]
[316505345,1709520635399,-500.0,0.00024657,2]
[316505346,1709520635409,-500.0,0.00024657,2]
[316505347,1709520635419,-500.0,0.00024657,2]
[316505348,1709520635428,-500.0,0.00024657,2]
[316505349,1709520635437,-500.0,0.00024657,2]
[316505350,1709520635446,-500.0,0.00024657,2]
[316505351,1709520635455,-500.0,0.00024657,2]
[316505352,1709520635464,-500.0,0.00024657,2]
[316505353,1709520635473,-500.0,0.00024657,2]
[316505354,1709520635483,-502.15380787,0.00024657,2]
[316505355,1709520635492,-434.08255965,0.00024657,2]
[316505356,1709520635501,-500.0,0.00024657,2]
[316505357,1709520635511,-500.0,0.00024657,2]
[316505358,1709520635520,-500.0,0.00024657,2]
[316505359,1709520635529,-500.0,0.00024657,2]
[316505360,1709520635538,-500.0,0.00024657,2]
[316505361,1709520635546,-500.0,0.00024657,2]
[316505362,1709520635555,-500.0,0.00024657,2]
[316505363,1709520635564,-500.0,0.00024657,2]
[316505364,1709520635574,-500.0,0.00024657,2]
[316505365,1709520635583,-500.0,0.00024657,2]
[316505366,1709520635592,-500.0,0.00024657,2]
[316505367,1709520635603,-500.0,0.00024657,2]
[316505368,1709520635612,-504.29251963,0.00024657,2]
[316505369,1709520635621,-500.0,0.00024657,2]
[316505370,1709520635630,-500.0,0.00024657,2]
[316505371,1709520635639,-500.0,0.00024657,2]
[316505372,1709520635649,-500.0,0.00024657,2]
[316505373,1709520635658,-500.0,0.00024657,2]
[316505374,1709520635667,-500.0,0.00024657,2]
[316505375,1709520635676,-500.0,0.00024657,2]
[316505376,1709520635685,-500.0,0.00024657,2]
[316505377,1709520635695,-503.43020002,0.00024657,2]
[316505378,1709520635704,-500.0,0.00024657,2]
[316505379,1709520635713,-502.35790918,0.00024657,2]
[316505380,1709520635722,-500.0,0.00024657,2]
[316505381,1709520635733,-562.15645012,0.00024657,2]
[316505382,1709520635742,-500.0,0.00024657,2]
[316505383,1709520635752,-500.0,0.00024657,2]
[316505384,1709520635762,-500.0,0.00024657,2]
[316505385,1709520635771,-500.0,0.00024657,2]
[316505386,1709520635781,-172.5311452,0.00024657,2]
[316505387,1709520635790,-640.78807355,0.00024657,2]
[316505388,1709520635801,-500.48201567,0.00024657,2]
[316505389,1709520635810,-501.61967695,0.00024657,2]
[316505390,1709520635819,-500.0,0.00024657,2]
[316505391,1709520635828,-505.03335866,0.00024657,2]
[316505392,1709520635838,-500.0,0.00024657,2]
[316505393,1709520635848,-500.0,0.00024657,2]
[316505394,1709520635858,-500.0,0.00024657,2]
[316505395,1709520635868,-500.0,0.00024657,2]
[316505396,1709520635878,-500.0,0.00024657,2]
[316505397,1709520635888,-500.0,0.00024657,2]
[316505398,1709520635897,-500.0,0.00024657,2]
[316505399,1709520635906,-500.0,0.00024657,2]
[316505400,1709520635916,-500.0,0.00024657,2]
[316505401,1709520635926,-602.01151186,0.00024657,2]
[316505402,1709520635935,-500.0,0.00024657,2]
[316505403,1709520635944,-500.0,0.00024657,2]
[316505404,1709520635953,-500.0,0.00024657,2]
[316505405,1709520635963,-565.83251795,0.00024657,2]
[316505406,1709520635972,-689.34,0.00024657,2]
[316505407,1709520635982,-689.34,0.00024657,2]
[316505408,1709520635993,-689.34,0.00024657,2]
[316505409,1709520636003,-689.34,0.00024657,2]
[316505410,1709520636013,-689.34,0.00024657,2]
[316505411,1709520636023,-689.34,0.00024657,2]
[316505412,1709520636033,-500.6540756,0.00024657,2]
[316505413,1709520636043,-500.0,0.00024657,2]
[316505414,1709520636052,-245.97524138,0.00024657,2]
[316505415,1709520636062,-500.0,0.00024657,2]
[316505416,1709520636071,-647.23952791,0.00024657,2]
[316505417,1709520636081,-267.94492904,0.00024657,2]
[316505418,1709520636091,-503.6472929,0.00024657,2]
[316505419,1709520636101,-319.34945627,0.00024657,2]
[316505420,1709520636111,-501.8838584,0.00024657,2]
[316505421,1709520636120,-501.94162882,0.00024657,2]
[316505422,1709520636130,-500.0,0.00024657,2]
[316505423,1709520636140,-500.0,0.00024657,2]
[316505424,1709520636149,-500.0,0.00024657,2]
[316505425,1709520636158,-500.0,0.00024657,2]
[316505426,1709520636168,-500.0,0.00024657,2]
[316505427,1709520636177,-500.0,0.00024657,2]
[316505428,1709520636187,-411.68025397,0.00024657,2]
[316505429,1709520636196,-500.0,0.00024657,2]
[316505430,1709520636207,-503.10366491,0.00024657,2]
[316505431,1709520636216,-500.0,0.00024657,2]
[316505432,1709520636225,-628.21918945,0.00024657,2]
[316505433,1709520636235,-609.77149269,0.00024657,2]
[316505434,1709520636245,-503.06482605,0.00024657,2]
[316505435,1709520636255,-500.0,0.00024657,2]
[316505436,1709520636265,-500.0,0.00024657,2]
[316505437,1709520636276,-500.0,0.00024657,2]
[316505438,1709520636286,-500.70822323,0.00024657,2]
[316505439,1709520636297,-500.0,0.00024657,2]
[316505440,1709520636307,-500.0,0.00024657,2]
[316505441,1709520636317,-500.0,0.00024657,2]
[316505442,1709520636326,-500.0,0.00024657,2]
[316505443,1709520636337,-500.0,0.00024657,2]
[316505444,1709520636348,-500.0,0.00024657,2]
[316505445,1709520636357,-500.0,0.00024657,2]
[316505446,1709520636367,-500.0,0.00024657,2]
[316505447,1709520636377,-500.0,0.00024657,2]
[316505448,1709520636387,-500.0,0.00024657,2]
[316505449,1709520636397,-500.0,0.00024657,2]
[316505450,1709520636407,-507.58165853,0.00024657,2]
[316505451,1709520636416,-500.0,0.00024657,2]
[316505452,1709520636426,-501.99179264,0.00024657,2]
[316505453,1709520636435,-399.74643045,0.00024657,2]
[316505454,1709520636444,-500.0,0.00024657,2]
[316505455,1709520636453,-500.0,0.00024657,2]
[316505456,1709520636463,-500.0,0.00024657,2]
[316505457,1709520636473,-500.0,0.00024657,2]
[316505458,1709520636482,-500.0,0.00024657,2]
[316505459,1709520636492,-96.59803676,0.00024657,2]
[316505460,1709520636560,-151.199755,0.00024657,2]
[316505711,1709520641866,-427.63664462,0.00023997,2]
[316505713,1709520641878,-1045.22121805,0.00023997,2]
[316505715,1709520641888,-252.20220824,0.00024657,2]
[316505717,1709520641898,-502.70042906,0.00024657,2]
[316505719,1709520641908,-500.0,0.00024657,2]
[316505721,1709520641917,-500.0,0.00024657,2]
[316505722,1709520641926,-500.0,0.00024657,2]
[316505724,1709520641935,-500.92138466,0.00024657,2]
[316505726,1709520641944,-500.0,0.00024657,2]
[316505728,1709520641954,-345.70743944,0.00024657,2]
[316505731,1709520641964,-500.0,0.00024657,2]
[316505734,1709520641974,-502.14035424,0.00024657,2]
[316505736,1709520641983,-304.24083854,0.00024657,2]
[316505738,1709520641997,-260.06612779,0.00024657,2]
[316505894,1709520643683,-239.93387221,0.00024657,2]
[316505896,1709520643692,-28.32281913,0.00024657,2]
[316506206,1709520646749,-545.17970941,0.00024657,2]
[316506209,1709520646759,-500.0,0.00024657,2]
[316506212,1709520646768,-319.00029059,0.00024657,2]
[316511233,1709520841997,20924.87568456,0.0002,2]
[316511235,1709520851000,2706.84314781,0.000125,2]
[316511236,1709520869892,477.87266185,0.0002,2]
[316511237,1709520958800,-312.60385265,0.00022262,2]
[316511238,1709520958821,-184.08617855,0.00022263,2]
[316511239,1709520958841,-1472.85786267,0.00022266,2]
[316511240,1709520958864,-250.0,0.00022267,2]
[316511241,1709520958885,-278.1432234,0.00022267,2]
[316511242,1709520958905,-628.79283704,0.00022557,2]
[316511243,1709520958925,-155.31997339,0.00022642,2]
[316511244,1709520958947,-346.46106962,0.00022642,2]
[316511245,1709520958968,-235.572698,0.00022916,2]
[316511246,1709520958992,-853.4989297,0.00023509,2]
[316511247,1709520959012,-10000.0,0.00024,2]
[316511248,1709520959033,-10000.0,0.00024,2]
[316511249,1709520959053,-18515.91367908,0.00024,2]
[316511250,1709520959074,-209.95,0.00024647,3]
[316511251,1709520959095,-629.89,0.00024647,3]
[316511252,1709520959115,-645.79,0.00024657,2]
[316511253,1709520959144,-645.79,0.00024657,2]
[316511254,1709520959171,-645.79,0.00024657,2]
[316511255,1709520959197,-645.79,0.00024657,2]
[316511256,1709520959222,-645.79,0.00024657,2]
[316511257,1709520959248,-645.79,0.00024657,2]
[316511258,1709520959276,-426.51295146,0.00024657,2]
[316511259,1709520959303,-500.0,0.00024657,2]
[316511260,1709520959328,-500.0,0.00024657,2]
[316511261,1709520959355,-500.0,0.00024657,2]
[316511262,1709520959379,-500.0,0.00024657,2]
[316511263,1709520959404,-500.0,0.00024657,2]
[316511264,1709520959428,-500.0,0.00024657,2]
[316511265,1709520959453,-500.0,0.00024657,2]
[316511266,1709520959479,-500.0,0.00024657,2]
[316511267,1709520959502,-500.0,0.00024657,2]
[316511268,1709520959526,-500.0,0.00024657,2]
[316511269,1709520959553,-506.09579502,0.00024657,2]
[316511270,1709520959578,-500.0,0.00024657,2]
[316511271,1709520959603,-501.81166482,0.00024657,2]
[316511272,1709520959627,-502.6055152,0.00024657,2]
[316511273,1709520959651,-503.6638036,0.00024657,2]
[316511274,1709520959677,-500.0,0.00024657,2]
[316511275,1709520959704,-500.0,0.00024657,2]
[316511276,1709520959730,-505.26991587,0.00024657,2]
[316511277,1709520959753,-151.0,0.00024657,2]
[316511278,1709520959776,-152.339065,0.00024657,2]
[316511279,1709520959797,-500.0,0.00024657,2]
[316511280,1709520959822,-500.0,0.00024657,2]
[316511281,1709520959846,-502.33909354,0.00024657,2]
[316511282,1709520959870,-500.0,0.00024657,2]
[316511283,1709520959894,-500.0,0.00024657,2]
[316511284,1709520959916,-500.0,0.00024657,2]
[316511285,1709520959939,-500.0,0.00024657,2]
[316511286,1709520959962,-500.0,0.00024657,2]
[316511287,1709520959985,-507.25967164,0.00024657,2]
[316511288,1709520960008,-500.0,0.00024657,2]
[316511289,1709520960032,-500.0,0.00024657,2]
[316511290,1709520960055,-500.0,0.00024657,2]
[316511291,1709520960077,-500.0,0.00024657,2]
[316511292,1709520960100,-446.67946487,0.00024657,2]
[316511293,1709520960129,-500.0,0.00024657,2]
[316511294,1709520960153,-500.0,0.00024657,2]
[316511295,1709520960175,-500.0,0.00024657,2]
[316511296,1709520960198,-502.6461679,0.00024657,2]
[316511297,1709520960222,-500.0,0.00024657,2]
[316511298,1709520960245,-500.0,0.00024657,2]
[316511299,1709520960270,-500.0,0.00024657,2]
[316511300,1709520960296,-500.0,0.00024657,2]
[316511301,1709520960444,-500.0,0.00024657,2]
[316511302,1709520960469,-500.0,0.00024657,2]
[316511303,1709520960490,-501.30499727,0.00024657,2]
[316511304,1709520960511,-500.0,0.00024657,2]
[316511305,1709520960533,-630.56531075,0.00024657,2]
[316511306,1709520960555,-500.0,0.00024657,2]
[316511307,1709520960575,-500.0,0.00024657,2]
[316511308,1709520960600,-500.0,0.00024657,2]
[316511309,1709520960620,-500.0,0.00024657,2]
[316511310,1709520960640,-151.59455241,0.00024657,2]
[316511311,1709520960661,-500.0,0.00024657,2]
[316511312,1709520960681,-500.0,0.00024657,2]
[316511313,1709520960701,-500.0,0.00024657,2]
[316511314,1709520960721,-502.87272207,0.00024657,2]
[316511315,1709520960743,-503.5618942,0.00024657,2]
[316511316,1709520960764,-500.0,0.00024657,2]
[316511317,1709520960785,-500.0,0.00024657,2]
[316511318,1709520960806,-502.48567873,0.00024657,2]
[316511319,1709520960827,-500.0,0.00024657,2]
[316511320,1709520960848,-500.0,0.00024657,2]
[316511321,1709520960869,-500.0,0.00024657,2]
[316511322,1709520960890,-500.0,0.00024657,2]
[316511323,1709520960911,-592.40222318,0.00024657,2]
[316511324,1709520960933,-500.0,0.00024657,2]
[316511325,1709520960955,-502.25723854,0.00024657,2]
[316511326,1709520960976,-500.0,0.00024657,2]
[316511327,1709520960997,-500.0,0.00024657,2]
[316511328,1709520961017,-500.0,0.00024657,2]
[316511329,1709520961039,-500.0,0.00024657,2]
[316511330,1709520961060,-500.0,0.00024657,2]
[316511331,1709520961088,-500.0,0.00024657,2]
[316511332,1709520961109,-500.0,0.00024657,2]
[316511333,1709520961130,-507.16399904,0.00024657,2]
[316511334,1709520961154,-502.98904935,0.00024657,2]
[316511335,1709520961175,-500.0,0.00024657,2]
[316511336,1709520961196,-501.70408258,0.00024657,2]
[316511337,1709520961217,-265.27178032,0.00024657,2]
[316511338,1709520961236,-500.0,0.00024657,2]
[316511339,1709520961257,-500.0,0.00024657,2]
[316511340,1709520961278,-502.18241739,0.00024657,2]
[316511341,1709520961299,-500.0,0.00024657,2]
[316511342,1709520961319,-508.37617176,0.00024657,2]
[316511343,1709520961343,-500.0,0.00024657,2]
[316511344,1709520961364,-500.0,0.00024657,2]
[316511345,1709520961385,-500.0,0.00024657,2]
[316511346,1709520961406,-500.0,0.00024657,2]
[316511347,1709520961428,-500.0,0.00024657,2]
[316511348,1709520961449,-246.69966539,0.00024657,2]
[316511349,1709520961471,-579.05856905,0.00024657,2]
[316511350,1709520961494,-500.0,0.00024657,2]
[316511351,1709520961516,-279.95548737,0.00024657,2]
[316511352,1709520961537,-500.0,0.00024657,2]
[316511353,1709520961558,-500.0,0.00024657,2]
[316511354,1709520961579,-179.90000493,0.00024657,2]
[316511355,1709520961600,-500.0,0.00024657,2]
[316511356,1709520961620,-500.0,0.00024657,2]
[316511357,1709520961641,-500.0,0.00024657,2]
[316511358,1709520961662,-500.0,0.00024657,2]
[316511359,1709520961682,-500.0,0.00024657,2]
[316511360,1709520961704,-590.52064694,0.00024657,2]
[316511361,1709520961725,-500.0,0.00024657,2]
[316511362,1709520961747,-501.68744063,0.00024657,2]
[316511363,1709520961768,-410.634682,0.00024657,2]
[316511364,1709520961791,-410.634682,0.00024657,2]
[316511365,1709520961811,-410.634682,0.00024657,2]
[316511366,1709520961832,-410.634682,0.00024657,2]
[316511367,1709520961853,-410.634682,0.00024657,2]
[316511368,1709520961874,-410.634682,0.00024657,2]
[316511369,1709520961895,-410.634682,0.00024657,2]
[316511370,1709520961916,-410.634682,0.00024657,2]
[316511371,1709520961937,-410.634682,0.00024657,2]
[316511372,1709520961958,-410.634682,0.00024657,2]
[316511373,1709520961978,-410.634682,0.00024657,2]
[316511374,1709520962000,-410.634682,0.00024657,2]
[316511375,1709520962020,-410.634682,0.00024657,2]
[316511376,1709520962042,-410.634682,0.00024657,2]
[316511377,1709520962065,-410.634682,0.00024657,2]
[316511378,1709520962087,-410.634682,0.00024657,2]
[316511379,1709520962109,-410.634682,0.00024657,2]
[316511380,1709520962130,-410.634682,0.00024657,2]
[316511381,1709520962152,-410.634682,0.00024657,2]
[316511382,1709520962174,-410.63469188,0.00024657,2]
[316511383,1709520962194,-159.77889802,0.00024657,2]
[316511384,1709520962217,-500.0,0.00024657,2]
[316511385,1709520962239,-500.0,0.00024657,2]
[316511386,1709520962261,-500.0,0.00024657,2]
[316511387,1709520962282,-500.0,0.00024657,2]
[316511388,1709520962304,-500.0,0.00024657,2]
[316511389,1709520962326,-500.0,0.00024657,2]
[316511390,1709520962349,-151.0,0.00024657,2]
[316511391,1709520962378,-500.0,0.00024657,2]
[316511392,1709520962402,-500.0,0.00024657,2]
[316511393,1709520962425,-509.16010938,0.00024657,2]
[316511394,1709520962447,-500.0,0.00024657,2]
[316511395,1709520962468,-500.0,0.00024657,2]
[316511396,1709520962490,-500.0,0.00024657,2]
[316511397,1709520962511,-500.0,0.00024657,2]
[316511398,1709520962534,-500.0,0.00024657,2]
[316511399,1709520962558,-506.63711047,0.00024657,2]
[316511400,1709520962581,-500.0,0.00024657,2]
[316511401,1709520962604,-500.0,0.00024657,2]
[316511402,1709520962625,-500.0,0.00024657,2]
[316511403,1709520962647,-500.0,0.00024657,2]
[316511404,1709520962669,-500.0,0.00024657,2]
[316511405,1709520962689,-500.0,0.00024657,2]
[316511406,1709520962711,-583.0,0.00024657,2]
[316511407,1709520962732,-583.0,0.00024657,2]
[316511408,1709520962754,-583.0,0.00024657,2]
[316511409,1709520962775,-583.0,0.00024657,2]
[316511410,1709520962798,-583.0,0.00024657,2]
[316511411,1709520962819,-583.0,0.00024657,2]
[316511412,1709520962842,-503.85177638,0.00024657,2]
[316511413,1709520962864,-500.0,0.00024657,2]
[316511414,1709520962887,-500.0,0.00024657,2]
[316511415,1709520962909,-500.0,0.00024657,2]
[316511416,1709520962930,-500.0,0.00024657,2]
[316511417,1709520962951,-500.0,0.00024657,2]
[316511418,1709520962974,-500.0,0.00024657,2]
[316511419,1709520963085,-500.0,0.00024657,2]
[316511420,1709520963106,-500.0,0.00024657,2]
[316511421,1709520963127,-500.0,0.00024657,2]
[316511422,1709520963149,-500.0,0.00024657,2]
[316511423,1709520963169,-250.27111095,0.00024657,2]
[316511451,1709521636154,-184.08617855,0.00021998,2]
[316511452,1709521636177,-312.60385265,0.00021999,2]
[316511453,1709521636200,-930.27166461,0.00022,2]
[316511454,1709521636221,-177.240497,0.00022254,2]
[316511455,1709521636243,-258.27553059,0.00022557,2]
[316511469,1709521748138,-1472.85786267,0.00022185,2]
[316511470,1709521748159,-90.20913733,0.00022186,2]
[316511575,1709521838054,-312.60385265,0.00021989,2]
[316511576,1709521838068,-248.9430907,0.0002199,2]